{"text_format":"3","workbook":"xlsx","n_sheets":2,"sheets":["Menot","Luokka"],"not_rendered":{"defined_names":5},"read":"whole","date_system":"1900"}

{"sheet":"Menot","index":0,"n_rows":25,"n_cols":7,"rows_kept":25,"merged":[[0,1,0,5],[1,1,1,6]]}
[null,"KULUBUDJETTI",{"$nulls":4},{"$f":"TODAY()","v":"2018-06-18"}]
[null,"Yrityksen nimi"]
[null,"Kulu","Luokka","Budjetti","Todelliset","Erotus (€)","Erotus (%)"]
[null,"Mainonta","Toiminta",null,null,{"$f":"IFERROR(SUM(Menot[Budjetti]-Menot[Todelliset]), \"\")","v":0},{"$f":"IFERROR(SUM(Menot[Erotus (€)]/Menot[Budjetti]),\"\")","v":""}]
[null,"Saatavat","Toiminta",null,null,{"$f":"IFERROR(SUM(Menot[Budjetti]-Menot[Todelliset]), \"\")","v":0},{"$f":"IFERROR(SUM(Menot[Erotus (€)]/Menot[Budjetti]),\"\")","v":""}]
[null,"Edut","Toiminta",null,null,{"$f":"IFERROR(SUM(Menot[Budjetti]-Menot[Todelliset]), \"\")","v":0},{"$f":"IFERROR(SUM(Menot[Erotus (€)]/Menot[Budjetti]),\"\")","v":""}]
[null,"Tarvikkeet","Toiminta",null,null,{"$f":"IFERROR(SUM(Menot[Budjetti]-Menot[Todelliset]), \"\")","v":0},{"$f":"IFERROR(SUM(Menot[Erotus (€)]/Menot[Budjetti]),\"\")","v":""}]
[null,"Postimaksut","Toiminta",null,null,{"$f":"IFERROR(SUM(Menot[Budjetti]-Menot[Todelliset]), \"\")","v":0},{"$f":"IFERROR(SUM(Menot[Erotus (€)]/Menot[Budjetti]),\"\")","v":""}]
[null,"Vuokra tai asuntolaina","Toiminta",null,null,{"$f":"IFERROR(SUM(Menot[Budjetti]-Menot[Todelliset]), \"\")","v":0},{"$f":"IFERROR(SUM(Menot[Erotus (€)]/Menot[Budjetti]),\"\")","v":""}]
[null,"Myynnin menot","Toiminta",null,null,{"$f":"IFERROR(SUM(Menot[Budjetti]-Menot[Todelliset]), \"\")","v":0},{"$f":"IFERROR(SUM(Menot[Erotus (€)]/Menot[Budjetti]),\"\")","v":""}]
[null,"Verot","Toiminta",null,null,{"$f":"IFERROR(SUM(Menot[Budjetti]-Menot[Todelliset]), \"\")","v":0},{"$f":"IFERROR(SUM(Menot[Erotus (€)]/Menot[Budjetti]),\"\")","v":""}]
[null,"Lämmitys, sähkö ja vesi","Toiminta",null,null,{"$f":"IFERROR(SUM(Menot[Budjetti]-Menot[Todelliset]), \"\")","v":0},{"$f":"IFERROR(SUM(Menot[Erotus (€)]/Menot[Budjetti]),\"\")","v":""}]
[null,"Muut","Toiminta",null,null,{"$f":"IFERROR(SUM(Menot[Budjetti]-Menot[Todelliset]), \"\")","v":0},{"$f":"IFERROR(SUM(Menot[Erotus (€)]/Menot[Budjetti]),\"\")","v":""}]
[null,"Vakuutus","Toiminta",null,null,{"$f":"IFERROR(SUM(Menot[Budjetti]-Menot[Todelliset]), \"\")","v":0},{"$f":"IFERROR(SUM(Menot[Erotus (€)]/Menot[Budjetti]),\"\")","v":""}]
[null,"Korko","Toiminta",null,null,{"$f":"IFERROR(SUM(Menot[Budjetti]-Menot[Todelliset]), \"\")","v":0},{"$f":"IFERROR(SUM(Menot[Erotus (€)]/Menot[Budjetti]),\"\")","v":""}]
[null,"Puhelin","Toiminta",null,null,{"$f":"IFERROR(SUM(Menot[Budjetti]-Menot[Todelliset]), \"\")","v":0},{"$f":"IFERROR(SUM(Menot[Erotus (€)]/Menot[Budjetti]),\"\")","v":""}]
[null,"Huolto ja korjaukset","Toiminta",null,null,{"$f":"IFERROR(SUM(Menot[Budjetti]-Menot[Todelliset]), \"\")","v":0},{"$f":"IFERROR(SUM(Menot[Erotus (€)]/Menot[Budjetti]),\"\")","v":""}]
[null,"Juridiset maksut","Toiminta",null,null,{"$f":"IFERROR(SUM(Menot[Budjetti]-Menot[Todelliset]), \"\")","v":0},{"$f":"IFERROR(SUM(Menot[Erotus (€)]/Menot[Budjetti]),\"\")","v":""}]
[null,"Poisto","Toiminta",null,null,{"$f":"IFERROR(SUM(Menot[Budjetti]-Menot[Todelliset]), \"\")","v":0},{"$f":"IFERROR(SUM(Menot[Erotus (€)]/Menot[Budjetti]),\"\")","v":""}]
[null,"Toimitus","Toiminta",null,null,{"$f":"IFERROR(SUM(Menot[Budjetti]-Menot[Todelliset]), \"\")","v":0},{"$f":"IFERROR(SUM(Menot[Erotus (€)]/Menot[Budjetti]),\"\")","v":""}]
[null,"Varastointi","Toiminta",null,null,{"$f":"IFERROR(SUM(Menot[Budjetti]-Menot[Todelliset]), \"\")","v":0},{"$f":"IFERROR(SUM(Menot[Erotus (€)]/Menot[Budjetti]),\"\")","v":""}]
[null,"Kauppa","Henkilökohtaiset",null,null,{"$f":"IFERROR(SUM(Menot[Budjetti]-Menot[Todelliset]), \"\")","v":0},{"$f":"IFERROR(SUM(Menot[Erotus (€)]/Menot[Budjetti]),\"\")","v":""}]
[null,"Myyjät","Henkilökohtaiset",null,null,{"$f":"IFERROR(SUM(Menot[Budjetti]-Menot[Todelliset]), \"\")","v":0},{"$f":"IFERROR(SUM(Menot[Erotus (€)]/Menot[Budjetti]),\"\")","v":""}]
[null,"Muut","Henkilökohtaiset",null,null,{"$f":"IFERROR(SUM(Menot[Budjetti]-Menot[Todelliset]), \"\")","v":0},{"$f":"IFERROR(SUM(Menot[Erotus (€)]/Menot[Budjetti]),\"\")","v":""}]
[null,"Menot yhteensä",null,{"$f":"IFERROR(SUM(Menot[Budjetti]), \"\")","v":0},{"$f":"IFERROR(SUM(Menot[Todelliset]), \"\")","v":0},{"$f":"IFERROR(SUM(Menot[Erotus (€)]), \"\")","v":0},{"$f":"IFERROR(SUM(Menot[[#Totals],[Erotus (€)]]/Menot[[#Totals],[Budjetti]]),\"\")","v":""}]

{"sheet":"Luokka","index":1,"n_rows":4,"n_cols":2,"rows_kept":4}
[null,"Luokkahaku"]
[null,"Luokka"]
[null,"Toiminta"]
[null,"Henkilökohtaiset"]